fUSD/lending_fUSD_20251225
["ID","MTS","AMOUNT","RATE_DAILY","PERIOD"]
[399727796,1766638265218,-404.547644,0.00032877,31]
[399727797,1766638265227,-211.370126,0.00032877,31]
[399727798,1766638265237,-468.462983,0.00032877,31]
[399727799,1766638265247,-468.462983,0.00032877,31]
[399727800,1766638265257,-151.0,0.00032877,31]
[399727801,1766638265267,-211.370126,0.00032877,31]
[399727802,1766638265277,-151.0,0.00032877,31]
[399727803,1766638265287,-404.547644,0.00032877,31]
[399727804,1766638265296,-211.370126,0.00032877,31]
[399727805,1766638265307,-404.547644,0.00032877,31]
[399727806,1766638265316,-468.462983,0.00032877,31]
[399727807,1766638265326,-468.462983,0.00032877,31]
[399727808,1766638265337,-211.370126,0.00032877,31]
[399727809,1766638265347,-404.547644,0.00032877,31]
[399727810,1766638265357,-211.370126,0.00032877,31]
[399727811,1766638265367,-404.547644,0.00032877,31]
[399727812,1766638265377,-468.462983,0.00032877,31]
[399727813,1766638265392,-468.462983,0.00032877,31]
[399727814,1766638265403,-404.547644,0.00032877,31]
[399727815,1766638265413,-211.370126,0.00032877,31]
[399727816,1766638265422,-404.547644,0.00032877,31]
[399727817,1766638265432,-211.370126,0.00032877,31]
[399727818,1766638265442,-151.0,0.00032877,31]
[399727819,1766638265452,-151.0,0.00032877,31]
[399727820,1766638265465,-151.0,0.00032877,31]
[399727821,1766638265475,-151.0,0.00032877,31]
[399727822,1766638265485,-359.574786,0.00032877,31]
[399727823,1766638265495,-151.0,0.00032877,31]
[399727824,1766638265506,-359.574786,0.00032877,31]
[399727825,1766638265516,-151.0,0.00032877,31]
[399727826,1766638265526,-151.0,0.00032877,31]
[399727827,1766638265535,-151.0,0.00032877,31]
[399727828,1766638265545,-151.0,0.00032877,31]
[399727829,1766638265555,-359.574786,0.00032877,31]
[399727830,1766638265564,-359.574786,0.00032877,31]
[399727831,1766638265575,-152.237158,0.00032877,31]
[399727832,1766638265584,-151.0,0.00032877,31]
[399727833,1766638265594,-151.0,0.00032877,31]
[399727834,1766638265604,-151.0,0.00032877,31]
[399727835,1766638265614,-151.0,0.00032877,31]
[399727836,1766638265624,-359.574786,0.00032877,31]
[399727837,1766638265635,-359.574786,0.00032877,31]
[399727838,1766638265644,-1090.380695,0.00032877,31]
[399727839,1766638265654,-151.0,0.00032877,31]
[399727840,1766638265664,-151.0,0.00032877,31]
[399727841,1766638265674,-1090.380695,0.00032877,31]
[399727842,1766638265684,-279.018146,0.00032877,31]
[399727843,1766638265695,-359.574786,0.00032877,31]
[399727844,1766638265705,-359.574786,0.00032877,31]
[399727845,1766638265715,-151.0,0.00032877,31]
[399727846,1766638265725,-151.0,0.00032877,31]
[399727847,1766638265735,-1090.380695,0.00032877,31]
[399727848,1766638265745,-327.307542,0.00032877,31]
[399727849,1766638265754,-1090.380695,0.00032877,31]
[399727850,1766638265763,-327.307542,0.00032877,31]
[399727851,1766638265850,-1090.380695,0.00032877,31]
[399727852,1766638265859,-327.307542,0.00032877,31]
[399727853,1766638265868,-1090.380695,0.00032877,31]
[399727854,1766638265877,-327.307542,0.00032877,31]
[399727855,1766638265887,-151.0,0.00032877,31]
[399727856,1766638265895,-1090.380695,0.00032877,31]
[399727857,1766638265905,-327.307542,0.00032877,31]
[399727858,1766638265914,-327.307542,0.00032877,31]
[399727859,1766638265924,-1090.380695,0.00032877,31]
[399727860,1766638265934,-151.0,0.00032877,31]
[399727861,1766638265943,-151.0,0.00032877,31]
[399727862,1766638265953,-327.307542,0.00032877,31]
[399727863,1766638265962,-327.307542,0.00032877,31]
[399727864,1766638265972,-153.030329,0.00032877,31]
[399727865,1766638265982,-151.0,0.00032877,31]
[399727866,1766638265991,-151.0,0.00032877,31]
[399727867,1766638266001,-263.759338,0.00032877,31]
[399727868,1766638266010,-263.759338,0.00032877,31]
[399727869,1766638266020,-10000.0,0.00032877,120]
[399727870,1766638266029,-10000.0,0.00032877,120]
[399727871,1766638266038,-10000.0,0.00032877,120]
[399727872,1766638266048,-500.0,0.00032877,2]
[399727873,1766638266058,-500.0,0.00032877,2]
[399727874,1766638266068,-500.0,0.00032877,2]
[399727875,1766638266078,-500.0,0.00032877,2]
[399727876,1766638266087,-500.0,0.00032877,2]
[399727877,1766638266097,-327.8095602,0.00032877,2]
[399727878,1766638266106,-500.0,0.00032877,7]
[399727879,1766638266116,-500.0,0.00032877,7]
[399727880,1766638266126,-500.0,0.00032877,7]
[399727881,1766638266135,-500.0,0.00032877,7]
[399727882,1766638266145,-500.0,0.00032877,7]
[399727883,1766638266155,-500.0,0.00032877,7]
[399727884,1766638266164,-500.0,0.00032877,7]
[399727885,1766638266173,-500.0,0.00032877,7]
[399727886,1766638266183,-500.0,0.00032877,7]
[399727887,1766638266193,-500.0,0.00032877,7]
[399727888,1766638266202,-500.0,0.00032877,7]
[399727889,1766638266211,-500.0,0.00032877,7]
[399727890,1766638266221,-417.61349395,0.00032877,7]
[399727891,1766638266231,-500.0,0.00032877,7]
[399727892,1766638266240,-500.0,0.00032877,7]
[399727893,1766638266250,-500.0,0.00032877,7]
[399727894,1766638266259,-500.0,0.00032877,7]
[399727895,1766638266269,-500.0,0.00032877,7]
[399727896,1766638266279,-500.0,0.00032877,7]
[399727897,1766638266288,-500.0,0.00032877,7]
[399727898,1766638266297,-500.0,0.00032877,7]
[399727899,1766638266307,-500.0,0.00032877,7]
[399727900,1766638266317,-500.0,0.00032877,7]
[399727901,1766638266327,-500.0,0.00032877,7]
[399727902,1766638266336,-500.0,0.00032877,7]
[399727903,1766638266345,-500.0,0.00032877,7]
[399727904,1766638266354,-500.0,0.00032877,7]
[399727905,1766638266363,-500.0,0.00032877,7]
[399727906,1766638266373,-500.0,0.00032877,7]
[399727907,1766638266383,-500.0,0.00032877,7]
[399727908,1766638266394,-396.40149932,0.00032877,7]
[399727909,1766638266403,-500.0,0.00032877,7]
[399727910,1766638266414,-500.0,0.00032877,7]
[399727911,1766638266424,-500.0,0.00032877,7]
[399727912,1766638266433,-500.0,0.00032877,7]
[399727913,1766638266443,-500.0,0.00032877,7]
[399727914,1766638266454,-500.0,0.00032877,7]
[399727915,1766638266464,-500.0,0.00032877,7]
[399727916,1766638266474,-663.02,0.000329,14]
[399727917,1766638266483,-6867.78,0.000329,2]
[399727918,1766638266494,-1600.0,0.00032956,120]
[399727919,1766638266503,-223.77275444,0.00033,120]
[399727920,1766638266512,-783.43375969,0.00033,2]
[399727921,1766638266522,-170.0,0.00033,14]
[399727922,1766638266531,-1000.0,0.00033034,30]
[399727923,1766638266541,-500.0,0.0003315,11]
[399727924,1766638266551,-500.0,0.0003315,11]
[399727925,1766638266561,-500.0,0.0003315,2]
[399727926,1766638266570,-500.0,0.0003315,11]
[399727927,1766638266580,-500.0,0.0003315,11]
[399727928,1766638266590,-500.0,0.0003315,11]
[399727929,1766638266600,-500.0,0.0003315,11]
[399727930,1766638266610,-500.0,0.0003315,11]
[399727931,1766638266622,-339.15664192,0.0003315,11]
[399727932,1766638266632,-500.0,0.0003315,11]
[399727933,1766638266641,-376.30292768,0.0003315,11]
[399727934,1766638266651,-578.46,0.0003315,11]
[399727935,1766638266661,-500.0,0.0003315,2]
[399727936,1766638266671,-500.0,0.0003315,11]
[399727937,1766638266680,-304.65322654,0.0003315,2]
[399727938,1766638266690,-496.03185919,0.0003315,11]
[399727939,1766638266699,-524.05186852,0.0003315,11]
[399727940,1766638266708,-500.0,0.0003315,11]
[399727941,1766638266718,-857.92,0.0003315,11]
[399727942,1766638266727,-500.0,0.0003315,11]
[399727943,1766638266737,-500.0,0.0003315,11]
[399727944,1766638266746,-157.26130292,0.0003315,11]
[399727945,1766638266756,-498.97251519,0.0003315,11]
[399727946,1766638266766,-500.0,0.0003315,11]
[399727947,1766638266776,-500.0,0.0003315,11]
[399727948,1766638266785,-542.39162861,0.0003315,11]
[399727949,1766638266795,-500.0,0.0003315,11]
[399727950,1766638266804,-500.0,0.0003315,11]
[399727951,1766638266813,-474.67218499,0.0003315,11]
[399727952,1766638266823,-500.0,0.0003315,11]
[399727953,1766638266833,-500.0,0.0003315,11]
[399727954,1766638266843,-500.0,0.0003315,11]
[399727955,1766638266852,-500.0,0.0003315,11]
[399727956,1766638266862,-500.0,0.0003315,11]
[399727957,1766638266871,-500.0,0.0003315,11]
[399727958,1766638266881,-500.0,0.0003315,11]
[399727959,1766638266891,-500.0,0.0003315,11]
[399727960,1766638266900,-500.0,0.0003315,11]
[399727961,1766638266910,-500.0,0.0003315,11]
[399727962,1766638266920,-500.0,0.0003315,11]
[399727963,1766638266930,-2322.26,0.0003315,11]
[399727964,1766638266940,-500.0,0.0003315,11]
[399727965,1766638266949,-500.0,0.0003315,11]
[399727966,1766638266959,-500.0,0.0003315,11]
[399727967,1766638266969,-500.0,0.0003315,11]
[399727968,1766638266979,-1209.56,0.0003315,11]
[399727969,1766638266989,-532.69555751,0.0003315,11]
[399727970,1766638266998,-500.0,0.0003315,11]
[399727971,1766638267008,-500.0,0.0003315,11]
[399727972,1766638267018,-210.30748828,0.0003315,11]
[399727973,1766638267029,-454.01201194,0.0003315,11]
[399727974,1766638267039,-513.31008021,0.0003315,11]
[399727975,1766638267049,-549.23,0.0003315,11]
[399727976,1766638267058,-237.50233928,0.0003315,11]
[399727977,1766638267067,-500.0,0.0003315,11]
[399727978,1766638267077,-500.0,0.0003315,11]
[399727979,1766638267087,-5595.09,0.0003315,11]
[399727980,1766638267098,-414.90576165,0.0003315,11]
[399727981,1766638267107,-500.0,0.0003315,11]
[399727982,1766638267117,-500.0,0.0003315,11]
[399727983,1766638267126,-500.0,0.0003315,11]
[399727984,1766638267135,-205.8998904,0.0003315,11]
[399727985,1766638267146,-500.0,0.0003315,11]
[399727986,1766638267155,-500.0,0.0003315,11]
[399727987,1766638267165,-500.0,0.0003315,11]
[399727988,1766638267175,-156.45282924,0.0003315,11]
[399727989,1766638267184,-500.0,0.0003315,11]
[399727990,1766638267195,-227.82556087,0.0003315,11]
[399727991,1766638267205,-214.84553531,0.0003315,7]
[399727992,1766638267215,-585.55,0.0003315,5]
[399727993,1766638267225,-1000.0,0.00033165,2]
[399727994,1766638267234,-649.22,0.000332,30]
[399727995,1766638267244,-384.63394623,0.00033201,2]
[399727996,1766638267253,-900.0,0.0003323,2]
[399727997,1766638267263,-1000.0,0.00033282,30]
[399727998,1766638267272,-367.18835014,0.00033424,11]
[399727999,1766638267283,-500.0,0.00033424,11]
[399728000,1766638267292,-355.04447144,0.00033424,2]
[399728001,1766638267302,-500.0,0.00033424,11]
[399728002,1766638267311,-500.0,0.00033424,11]
[399728003,1766638267322,-520.06910549,0.00033424,11]
[399728004,1766638267331,-500.0,0.00033424,11]
[399728005,1766638267341,-500.0,0.00033424,11]
[399728006,1766638267352,-500.0,0.00033424,11]
[399728007,1766638267362,-578.46,0.00033424,11]
[399728008,1766638267371,-500.0,0.00033424,2]
[399728009,1766638267381,-474.30467974,0.00033424,11]
[399728010,1766638267393,-500.0,0.00033424,11]
[399728011,1766638267403,-857.92,0.00033424,11]
[399728012,1766638267412,-500.0,0.00033424,11]
[399728013,1766638267422,-500.0,0.00033424,11]
[399728014,1766638267433,-500.0,0.00033424,11]
[399728015,1766638267444,-500.0,0.00033424,11]
[399728016,1766638267453,-500.0,0.00033424,11]
[399728017,1766638267466,-500.0,0.00033424,11]
[399728018,1766638267476,-500.0,0.00033424,11]
[399728019,1766638267485,-500.0,0.00033424,11]
[399728020,1766638267495,-500.0,0.00033424,11]
[399728021,1766638267504,-500.0,0.00033424,11]
[399728022,1766638267513,-500.0,0.00033424,11]
[399728023,1766638267523,-500.0,0.00033424,11]
[399728024,1766638267532,-500.0,0.00033424,11]
[399728025,1766638267542,-500.0,0.00033424,11]
[399728026,1766638267551,-500.0,0.00033424,11]
[399728027,1766638267560,-500.0,0.00033424,11]
[399728028,1766638267569,-500.0,0.00033424,11]
[399728029,1766638267579,-2322.26,0.00033424,11]
[399728030,1766638267588,-500.0,0.00033424,11]
[399728031,1766638267598,-500.0,0.00033424,11]
[399728032,1766638267608,-500.0,0.00033424,11]
[399728033,1766638267617,-500.0,0.00033424,11]
[399728034,1766638267627,-1209.56,0.00033424,11]
[399728035,1766638267637,-500.0,0.00033424,11]
[399728036,1766638267646,-583.78304371,0.00033424,11]
[399728037,1766638267656,-549.23,0.00033424,11]
[399728038,1766638267666,-500.0,0.00033424,11]
[399728039,1766638267676,-500.0,0.00033424,11]
[399728040,1766638267686,-5595.09,0.00033424,11]
[399728041,1766638267695,-500.0,0.00033424,11]
[399728042,1766638267705,-500.0,0.00033424,11]
[399728043,1766638267714,-500.0,0.00033424,11]
[399728044,1766638267724,-500.0,0.00033424,11]
[399728045,1766638267733,-500.0,0.00033424,11]
[399728046,1766638267743,-500.0,0.00033424,11]
[399728047,1766638267752,-500.0,0.00033424,11]
[399728048,1766638267762,-585.55,0.00033424,5]
[399728049,1766638267772,-168.32,0.00033472,2]
[399728050,1766638267781,-302.15446449,0.00033492,120]
[399728051,1766638267791,-1204.66391033,0.000335,2]
[399728052,1766638267800,-29657.05,0.000335,14]
[399728053,1766638267810,-1000.0,0.00033531,30]
[399728054,1766638267823,-2184.0,0.00033689,3]
[399728055,1766638267833,-500.0,0.00033698,11]
[399728056,1766638267842,-500.0,0.00033698,11]
[399728057,1766638267851,-500.0,0.00033698,11]
[399728058,1766638267861,-500.0,0.00033698,11]
[399728059,1766638267870,-500.0,0.00033698,11]
[399728060,1766638267879,-509.67490394,0.00033698,11]
[399728061,1766638267889,-578.46,0.00033698,11]
[399728062,1766638267898,-500.0,0.00033698,2]
[399728063,1766638267908,-500.0,0.00033698,11]
[399728064,1766638267918,-857.92,0.00033698,11]
[399728065,1766638267927,-598.20024578,0.00033698,11]
[399728066,1766638267937,-500.0,0.00033698,11]
[399728067,1766638267946,-500.0,0.00033698,11]
[399728068,1766638267955,-500.0,0.00033698,11]
[399728069,1766638267965,-500.0,0.00033698,11]
[399728070,1766638267974,-234.9994797,0.00033698,11]
[399728071,1766638267984,-500.0,0.00033698,11]
[399728072,1766638267993,-500.0,0.00033698,11]
[399728073,1766638268003,-500.0,0.00033698,11]
[399728074,1766638268012,-500.0,0.00033698,11]
[399728075,1766638268022,-500.0,0.00033698,11]
[399728076,1766638268032,-314.21506345,0.00033698,11]
[399728077,1766638268042,-500.0,0.00033698,11]
[399728078,1766638268052,-500.0,0.00033698,11]
[399728079,1766638268062,-500.0,0.00033698,11]
[399728080,1766638268072,-500.0,0.00033698,11]
[399728081,1766638268082,-500.0,0.00033698,11]
[399728082,1766638268092,-2322.26,0.00033698,11]
[399728083,1766638268102,-500.0,0.00033698,11]
[399728084,1766638268112,-500.0,0.00033698,11]
[399728085,1766638268121,-500.0,0.00033698,11]
[399728086,1766638268131,-500.0,0.00033698,11]
[399728087,1766638268140,-1209.56,0.00033698,11]
[399728088,1766638268150,-403.02058187,0.00033698,11]
[399728089,1766638268161,-549.23,0.00033698,11]
[399728090,1766638268171,-500.0,0.00033698,11]
[399728091,1766638268181,-500.0,0.00033698,11]
[399728092,1766638268192,-5595.09,0.00033698,11]
[399728093,1766638268201,-500.0,0.00033698,11]
[399728094,1766638268211,-500.0,0.00033698,11]
[399728095,1766638268220,-500.0,0.00033698,11]
[399728096,1766638268230,-500.0,0.00033698,11]
[399728097,1766638268241,-508.86999622,0.00033698,11]
[399728098,1766638268251,-500.0,0.00033698,11]
[399728099,1766638268261,-585.55,0.00033698,5]
[399728100,1766638268271,-663.02,0.000337,14]
[399728101,1766638268280,-6867.78,0.000337,2]
[399728102,1766638268289,-1000.0,0.00033779,30]
[399728103,1766638268299,-152.3404577,0.00033847,2]
[399728104,1766638268308,-500.0,0.00033972,11]
[399728105,1766638268318,-500.0,0.00033972,11]
[399728106,1766638268327,-500.0,0.00033972,11]
[399728107,1766638268336,-500.0,0.00033972,11]
[399728108,1766638268345,-500.0,0.00033972,11]
[399728109,1766638268355,-578.46,0.00033972,11]
[399728110,1766638268366,-500.0,0.00033972,11]
[399728111,1766638268376,-857.92,0.00033972,11]
[399728112,1766638268389,-500.0,0.00033972,11]
[399728113,1766638268398,-500.0,0.00033972,11]
[399728114,1766638268408,-500.0,0.00033972,11]
[399728115,1766638268423,-500.0,0.00033972,11]
[399728116,1766638268434,-500.0,0.00033972,11]
[399728117,1766638268444,-500.0,0.00033972,11]
[399728118,1766638268453,-383.56547848,0.00033972,11]
[399728119,1766638268463,-500.0,0.00033972,11]
[399728120,1766638268472,-323.84270726,0.00033972,11]
[399728121,1766638268482,-500.0,0.00033972,11]
[399728122,1766638268492,-500.0,0.00033972,11]
[399728123,1766638268501,-500.0,0.00033972,11]
[399728124,1766638268510,-500.0,0.00033972,11]
[399728125,1766638268520,-500.0,0.00033972,11]
[399728126,1766638268530,-2322.26,0.00033972,11]
[399728127,1766638268539,-500.0,0.00033972,11]
[399728128,1766638268549,-500.0,0.00033972,11]
[399728129,1766638268558,-500.0,0.00033972,11]
[399728130,1766638268568,-500.0,0.00033972,11]
[399728131,1766638268577,-1209.56,0.00033972,11]
[399728132,1766638268587,-549.23,0.00033972,11]
[399728133,1766638268597,-543.65709727,0.00033972,11]
[399728134,1766638268607,-500.0,0.00033972,11]
[399728135,1766638268617,-5595.09,0.00033972,11]
[399728136,1766638268627,-500.0,0.00033972,11]
[399728137,1766638268637,-500.0,0.00033972,11]
[399728138,1766638268647,-500.0,0.00033972,11]
[399728139,1766638268657,-500.0,0.00033972,11]
[399728140,1766638268667,-500.0,0.00033972,11]
[399728141,1766638268676,-585.55,0.00033972,5]
[399728142,1766638268686,-1000.0,0.00034027,30]
[399728143,1766638268696,-151.0,0.00034243,14]
[399728144,1766638268707,-500.0,0.00034246,11]
[399728145,1766638268716,-500.0,0.00034246,11]
[399728146,1766638268726,-523.14071602,0.00034246,11]
[399728147,1766638268735,-500.0,0.00034246,11]
[399728148,1766638268745,-500.0,0.00034246,11]
[399728149,1766638268754,-578.46,0.00034246,11]
[399728150,1766638268765,-500.0,0.00034246,11]
[399728151,1766638268779,-857.92,0.00034246,11]
[399728152,1766638268789,-500.0,0.00034246,11]
[399728153,1766638268798,-500.0,0.00034246,11]
[399728154,1766638268808,-500.0,0.00034246,11]
[399728155,1766638268818,-500.0,0.00034246,11]
[399728156,1766638268827,-500.0,0.00034246,11]
[399728157,1766638268837,-500.0,0.00034246,11]
[399728158,1766638268847,-500.0,0.00034246,11]
[399728159,1766638268856,-500.0,0.00034246,11]
[399728160,1766638268866,-500.0,0.00034246,11]
[399728161,1766638268876,-500.0,0.00034246,11]
[399728162,1766638268885,-500.0,0.00034246,11]
[399728163,1766638268895,-500.0,0.00034246,11]
[399728164,1766638268902,-2322.26,0.00034246,11]
[399728165,1766638268910,-500.0,0.00034246,11]
[399728166,1766638268918,-500.0,0.00034246,11]
[399728167,1766638268926,-500.0,0.00034246,11]
[399728168,1766638268934,-500.0,0.00034246,11]
[399728169,1766638268942,-1209.56,0.00034246,11]
[399728170,1766638268951,-549.23,0.00034246,11]
[399728171,1766638268959,-500.0,0.00034246,11]
[399728172,1766638268967,-5595.09,0.00034246,11]
[399728173,1766638268979,-368.52564434,0.00034246,11]
[399728174,1766638268987,-500.0,0.00034246,11]
[399728175,1766638268996,-500.0,0.00034246,11]
[399728176,1766638269004,-500.0,0.00034246,11]
[399728177,1766638269013,-500.0,0.00034246,11]
[399728178,1766638269022,-585.55,0.00034246,5]
[399728179,1766638269030,-1000.0,0.00034275,30]
[399728180,1766638269038,-815.01894881,0.00034373,2]
[399728181,1766638269046,-3631.93325226,0.0003452,11]
[399728182,1766638269054,-500.0,0.0003452,11]
[399728183,1766638269061,-500.0,0.0003452,11]
[399728184,1766638269070,-300.52688609,0.0003452,11]
[399728185,1766638269078,-500.0,0.0003452,11]
[399728186,1766638269086,-578.46,0.0003452,11]
[399728187,1766638269094,-184.94127307,0.0003452,11]
[399728188,1766638269103,-857.92,0.0003452,11]
[399728189,1766638269112,-500.0,0.0003452,11]
[399728190,1766638269119,-500.0,0.0003452,11]
[399728191,1766638269127,-500.0,0.0003452,11]
[399728192,1766638269137,-500.0,0.0003452,11]
[399728193,1766638269144,-500.0,0.0003452,11]
[399728194,1766638269151,-500.0,0.0003452,11]
[399728195,1766638269159,-500.0,0.0003452,11]
[399728196,1766638269168,-500.0,0.0003452,11]
[399728197,1766638269175,-500.0,0.0003452,11]
[399728198,1766638269186,-500.0,0.0003452,11]
[399728199,1766638269193,-500.0,0.0003452,11]
[399728200,1766638269201,-500.0,0.0003452,11]
[399728201,1766638269208,-2322.26,0.0003452,11]
[399728202,1766638269216,-500.0,0.0003452,11]
[399728203,1766638269223,-464.25281137,0.0003452,11]
[399728204,1766638269230,-500.0,0.0003452,11]
[399728205,1766638269237,-500.0,0.0003452,11]
[399728206,1766638269244,-1209.56,0.0003452,11]
[399728207,1766638269253,-549.23,0.0003452,11]
[399728208,1766638269262,-500.0,0.0003452,11]
[399728209,1766638269271,-5595.09,0.0003452,11]
[399728210,1766638269281,-500.0,0.0003452,11]
[399728211,1766638269290,-500.0,0.0003452,11]
[399728212,1766638269300,-500.0,0.0003452,11]
[399728213,1766638269310,-500.0,0.0003452,11]
[399728214,1766638269320,-585.55,0.0003452,5]
[399728215,1766638269330,-1000.0,0.00034524,30]
[399728216,1766638269340,-398.86540225,0.0003457,2]
[399728217,1766638269350,-4266.16951405,0.00034619,7]
[399728218,1766638269360,-634.38,0.00034658,30]
[399728219,1766638269370,-1000.0,0.00034772,30]
[399728220,1766638269380,-500.0,0.00034794,11]
[399728221,1766638269394,-500.0,0.00034794,11]
[399728222,1766638269403,-242.34289308,0.00034794,11]
[399728223,1766638269413,-578.46,0.00034794,11]
[399728224,1766638269424,-857.92,0.00034794,11]
[399728225,1766638269435,-500.0,0.00034794,11]
[399728226,1766638269445,-179.39874284,0.00034794,11]
[399728227,1766638269455,-500.0,0.00034794,11]
[399728228,1766638269467,-568.06579311,0.00034794,11]
[399728229,1766638269477,-500.0,0.00034794,11]
[399728230,1766638269487,-500.0,0.00034794,11]
[399728231,1766638269496,-500.0,0.00034794,11]
[399728232,1766638269506,-500.0,0.00034794,11]
[399728233,1766638269516,-500.0,0.00034794,11]
[399728234,1766638269526,-500.0,0.00034794,11]
[399728235,1766638269536,-500.0,0.00034794,11]
[399728236,1766638269546,-500.0,0.00034794,11]
[399728237,1766638269556,-2322.26,0.00034794,11]
[399728238,1766638269566,-500.0,0.00034794,11]
[399728239,1766638269586,-392.07096512,0.00034794,11]
[399728240,1766638269599,-500.0,0.00034794,11]
[399728241,1766638269610,-1209.56,0.00034794,11]
[399728242,1766638269621,-549.23,0.00034794,11]
[399728243,1766638269631,-500.0,0.00034794,11]
[399728244,1766638269641,-5595.09,0.00034794,11]
[399728245,1766638269651,-500.0,0.00034794,11]
[399728246,1766638269662,-500.0,0.00034794,11]
[399728247,1766638269672,-500.0,0.00034794,11]
[399728248,1766638269682,-500.0,0.00034794,11]
[399728249,1766638269693,-585.55,0.00034794,5]
[399728250,1766638269703,-663.02,0.000348,14]
[399728251,1766638269714,-6867.78,0.000348,2]
[399728252,1766638269724,-1000.0,0.00034833,7]
[399728253,1766638269734,-250.0,0.00035,30]
[399728254,1766638269744,-1000.0,0.0003502,30]
[399728255,1766638269755,-858.43,0.00035068,5]
[399728256,1766638269766,-500.0,0.00035068,11]
[399728257,1766638269776,-500.0,0.00035068,11]
[399728258,1766638269787,-578.46,0.00035068,11]
[399728259,1766638269798,-857.92,0.00035068,11]
[399728260,1766638269808,-500.0,0.00035068,11]
[399728261,1766638269818,-500.0,0.00035068,11]
[399728262,1766638269828,-500.0,0.00035068,11]
[399728263,1766638269838,-500.0,0.00035068,11]
[399728264,1766638269848,-633.54001496,0.00035068,11]
[399728265,1766638269858,-524.27628181,0.00035068,11]
[399728266,1766638269868,-365.29532974,0.00035068,11]
[399728267,1766638269879,-500.0,0.00035068,11]
[399728268,1766638269889,-500.0,0.00035068,11]
[399728269,1766638269899,-500.0,0.00035068,11]
[399728270,1766638269910,-2322.26,0.00035068,11]
[399728271,1766638269921,-500.0,0.00035068,11]
[399728272,1766638269931,-500.0,0.00035068,11]
[399728273,1766638269941,-1209.56,0.00035068,11]
[399728274,1766638269952,-549.23,0.00035068,11]
[399728275,1766638269962,-500.0,0.00035068,11]
[399728276,1766638269973,-5595.09,0.00035068,11]
[399728277,1766638269984,-500.0,0.00035068,11]
[399728278,1766638269994,-483.16775156,0.00035068,11]
[399728279,1766638270004,-500.0,0.00035068,11]
[399728280,1766638270016,-500.0,0.00035068,11]
[399728281,1766638270026,-585.55,0.00035068,5]
[399728282,1766638270043,-615.062,0.00035069,2]
[399728283,1766638270054,-1327.0,0.00035069,2]
[399728284,1766638270065,-1610.0,0.00035069,2]
[399728285,1766638270076,-3459.0,0.00035069,2]
[399728286,1766638270087,-432.0,0.00035069,2]
[399728287,1766638270097,-1263.0,0.00035069,2]
[399728288,1766638270108,-1198.0,0.00035069,2]
[399728289,1766638270118,-912.0,0.00035069,2]
[399728290,1766638270129,-150.0,0.00035069,2]
[399728291,1766638270139,-200.0,0.00035069,2]
[399728292,1766638270150,-152.0,0.00035069,2]
[399728293,1766638270161,-200.0,0.00035069,2]
[399728294,1766638270171,-564.0,0.00035069,2]
[399728295,1766638270183,-4807.0,0.00035069,2]